[Event "DVM U12 2019"]
[Site "Magedburg"]
[Date "2019.12.27"]
[Round "2"]
[White "Fruth, David"]
[Black "Skolnik, Andrius"]
[Result "0-1"]
[ECO "C07"]
[WhiteElo "1473"]
[BlackElo "1278"]
[Annotator "NA"]
[PlyCount "112"]
[EventDate "2019.12.27"]
[EventType "team-tourn"]
[EventRounds "7"]
[EventCountry "GER"]
[SourceTitle "playchess.com"]
[Source "ChessBase"]
[SourceQuality "1"]
[WhiteTeam "USV TU Dresden"]
[BlackTeam "SF Brackel"]
[TimeControl "40/5400+30:1800+30"]

1. e4 {[%emt 0:00:00]} e6 {[%emt 0:00:00]} 2. d4 {[%emt 0:00:00]} d5 {[%emt 0:00:00]} 3. Nd2 {[%emt 0:00:00]} c5 {[%emt 0:00:00]} 4. Ngf3 {[%emt 0:00:12]} Nc6 {[%emt 0:00:15]} 5. Bb5 {[%emt 0:00:08]} Bd7 {[%emt 0:00:09]} 6. c3 {[%emt 0:03:00]} Qb6 {[%emt 0:00:32]} 7. Bxc6 {[%emt 0:00:24]} Bxc6 {[%emt 0:00:28]} 8. e5 {[%emt 0:00:52]} Ne7 {[%emt 0:00:34]} 9. O-O {[%emt 0:00:36]} Nf5 {[%emt 0:00:09]} 10. Nb3 {[%emt 0:00:29]} Ba4 {[%emt 0:00:22]} 11. dxc5 {[%emt 0:02:42]} Bxc5 {[%emt 0:00:16]} 12. Nfd2 {[%emt 0:01:38]} Bb5 {[%emt 0:00:20]} 13. Nxc5 {[%emt 0:00:30]} Bxf1 {[%emt 0:00:20]} 14. Qa4+ {[%emt 0:00:17]} Bb5 {[%emt 0:00:25]} 15. Qb4 {[%emt 0:01:40]} a5 {[%emt 0:00:39]} 16. Qa3 {[%emt 0:01:22]} Rc8 {[%emt 0:02:12]} 17. Ncb3 {[%emt 0:02:20]} Ne3 {[%emt 0:01:33]} 18. Qxa5 {[%emt 0:01:13]} Qxa5 {[%emt 0:01:20]} 19. Nxa5 {[%emt 0:00:20]} Nc2 {[%emt 0:00:11]} 20. Rb1 {[%emt 0:00:22]} b6 {[%emt 0:01:33]} 21. Nb7 {[%emt 0:00:33]} O-O {[%emt 0:00:56]} 22. Nd6 {[%emt 0:00:10]} Rc5 {[%emt 0:03:19]} 23. Nb3 {[%emt 0:02:09]} Bc4 {[%emt 0:01:55]} 24. Bd2 {[%emt 0:01:40]} Rc6 {[%emt 0:02:01]} 25. Rc1 {[%emt 0:00:24]} Bd3 {[%emt 0:00:03]} 26. f3 {[%emt 0:01:51]} f6 {[%emt 0:00:32]} 27. f4 {[%emt 0:01:31]} fxe5 {[%emt 0:00:38]} 28. fxe5 {[%emt 0:00:02]} Ba6 29. h3 Bd3 {[%emt 0:02:47]} 30. Bg5 {[%emt 0:08:53]} Rc7 {[%emt 0:04:04]} 31. Rd1 {[%emt 0:03:23]} Ba6 {[%emt 0:05:41]} 32. Rc1 {[%emt 0:02:36]} h6 {[%emt 0:00:15]} 33. Bd2 {[%emt 0:00:57]} Bd3 {[%emt 0:01:08]} 34. Rd1 {[%emt 0:06:43]} Ra7 {[%emt 0:04:08]} 35. a3 {[%emt 0:04:00]} Nxa3 {[%emt 0:00:15]} 36. bxa3 {[%emt 0:00:50]} Bc2 {[%emt 0:00:08]} 37. Nb5 {[%emt 0:03:01]} Bxd1 {[%emt 0:00:34]} 38. Nxa7 {[%emt 0:00:09]} Bxb3 {[%emt 0:00:08]} 39. Nc6 {[%emt 0:00:23]} Ba4 {[%emt 0:01:33]} 40. Nd4 {[%emt 0:00:49]} g5 {[%emt 0:01:12]} 41. Nxe6 {[%emt 0:30:45]} Re8 {[%emt 0:30:18]} 42. Nd4 {[%emt 0:00:14]} Rxe5 {[%emt 0:00:45]} 43. Kf2 {[%emt 0:00:16]} Bd1 {[%emt 0:00:54]} 44. g4 {[%emt 0:00:17]} b5 {[%emt 0:00:30]} 45. Kg3 {[%emt 0:00:51]} Be2 {[%emt 0:00:32]} 46. Nc6 {[%emt 0:01:27]} Re4 {[%emt 0:02:29]} 47. Nd4 {[%emt 0:00:28]} Bc4 {[%emt 0:01:17]} 48. Kf3 {[%emt 0:00:23]} Kf7 {[%emt 0:00:53]} 49. Nf5 {[%emt 0:00:38]} Re6 {[%emt 0:01:31]} 50. Nd4 {[%emt 0:00:20]} Ra6 {[%emt 0:03:02]} 51. Bc1 {[%emt 0:00:17]} Rf6+ {[%emt 0:01:01]} 52. Nf5 {[%emt 0:00:14]} Bd3 {[%emt 0:00:07]} 53. Ke3 {[%emt 0:00:46]} Bxf5 {[%emt 0:00:19]} 54. gxf5 {[%emt 0:00:14]} Rxf5 {[%emt 0:00:24]} 55. Kd4 {[%emt 0:00:07]} Rf3 {[%emt 0:02:52]} 56. h4 {[%emt 0:00:17]} gxh4 {[%emt 0:02:17] normal} 0-1

[Event "DVM U12 2019"]
[Site "Magedburg"]
[Date "2019.12.27"]
[Round "2"]
[White "Spinka, Georg Kamil"]
[Black "Tietz, Bennit"]
[Result "0-1"]
[ECO "D00"]
[WhiteElo "1338"]
[BlackElo "1637"]
[Annotator "NA"]
[PlyCount "64"]
[EventDate "2019.12.27"]
[EventType "team-tourn"]
[EventRounds "7"]
[EventCountry "GER"]
[SourceTitle "playchess.com"]
[Source "ChessBase"]
[SourceQuality "1"]
[WhiteTeam "SV Roter Turm Halle"]
[BlackTeam "Hamburger SK"]
[TimeControl "40/5400+30:1800+30"]

1. d4 {[%emt 0:00:00]} d5 {[%emt 0:00:00]} 2. Bf4 {[%emt 0:00:00]} Bf5 {[%emt 0:02:00]} 3. Nf3 {[%emt 0:00:00]} Nc6 {[%emt 0:00:47]} 4. c3 {[%emt 0:00:43]} Nf6 {[%emt 0:00:41]} 5. e3 {[%emt 0:00:33]} e6 {[%emt 0:01:02]} 6. Nbd2 {[%emt 0:00:31]} Bd6 {[%emt 0:00:53]} 7. Bg3 {[%emt 0:00:30]} O-O {[%emt 0:01:42]} 8. Be2 {[%emt 0:09:41]} Re8 {[%emt 0:04:13]} 9. Ne5 {[%emt 0:02:47]} Bxe5 {[%emt 0:02:23]} 10. dxe5 {[%emt 0:00:33]} Ne4 {[%emt 0:05:58]} 11. Nf3 {[%emt 0:04:13]} h6 {[%emt 0:05:19]} 12. Nh4 {[%emt 0:03:21]} Bh7 {[%emt 0:03:44]} 13. Bd3 {[%emt 0:04:45]} Nxg3 {[%emt 0:01:54]} 14. hxg3 {[%emt 0:00:19]} Bxd3 {[%emt 0:01:41]} 15. Qxd3 {[%emt 0:00:08]} Nxe5 {[%emt 0:01:05]} 16. Qd4 {[%emt 0:03:05]} Nc6 {[%emt 0:05:32]} 17. Qg4 {[%emt 0:00:50]} Ne5 {[%emt 0:09:29]} 18. Qd4 {[%emt 0:04:43]} Qd6 {[%emt 0:05:59]} 19. O-O-O {[%emt 0:01:50]} c5 {[%emt 0:01:48]} 20. Qd2 {[%emt 0:02:55]} c4 {[%emt 0:02:38]} 21. Qd4 {[%emt 0:13:29]} Nd3+ {[%emt 0:02:07]} 22. Rxd3 {[%emt 0:02:51]} cxd3 {[%emt 0:00:31]} 23. Qxd3 {[%emt 0:00:18]} Rac8 {[%emt 0:02:50]} 24. Nf3 {[%emt 0:01:24]} a6 {[%emt 0:04:15]} 25. e4 {[%emt 0:04:45]} Qb6 {[%emt 0:06:15]} 26. Nd4 {[%emt 0:11:40]} dxe4 {[%emt 0:01:49]} 27. Qxe4 {[%emt 0:00:25]} Red8 {[%emt 0:02:17]} 28. Nb3 {[%emt 0:01:11]} Qxf2 {[%emt 0:01:40]} 29. Qxb7 {[%emt 0:01:29]} Qe3+ {[%emt 0:01:57]} 30. Kc2 {[%emt 0:04:53]} Qd3+ {[%emt 0:03:17]} 31. Kc1 {[%emt 0:00:22]} Qxg3 {[%emt 0:00:27]} 32. Rf1 {[%emt 0:03:38]} Qe3+ {[%emt 0:00:31] normal} 0-1

[Event "DVM U12 2019"]
[Site "Magedburg"]
[Date "2019.12.27"]
[Round "2"]
[White "Römer, Uri"]
[Black "Richter, Nicholas"]
[Result "1/2-1/2"]
[ECO "B21"]
[WhiteElo "1311"]
[BlackElo "1448"]
[Annotator "NA"]
[PlyCount "59"]
[EventDate "2019.12.27"]
[EventType "team-tourn"]
[EventRounds "7"]
[EventCountry "GER"]
[SourceTitle "playchess.com"]
[Source "ChessBase"]
[SourceQuality "1"]
[WhiteTeam "SF Brackel"]
[BlackTeam "USV TU Dresden"]
[TimeControl "40/5400+30:1800+30"]

1. e4 {[%emt 0:00:00]} c5 {[%emt 0:00:01]} 2. d4 {[%emt 0:00:31]} cxd4 {[%emt 0:01:13]} 3. c3 {[%emt 0:00:38]} g6 {[%emt 0:01:08]} 4. cxd4 {[%emt 0:00:51]} d5 {[%emt 0:00:40]} 5. exd5 {[%emt 0:01:10]} Nf6 {[%emt 0:00:35]} 6. Nc3 {[%emt 0:02:15]} Nxd5 {[%emt 0:01:46]} 7. Nf3 {[%emt 0:01:23]} Bg7 {[%emt 0:02:34]} 8. Nxd5 {[%emt 0:03:28]} Qxd5 9. Be3 {[%emt 0:01:13]} O-O {[%emt 0:02:05]} 10. Be2 {[%emt 0:01:11]} Nc6 {[%emt 0:01:17]} 11. b3 {[%emt 0:04:13]} Rd8 {[%emt 0:00:57]} 12. Bc4 {[%emt 0:02:02]} Qd6 {[%emt 0:04:46]} 13. Ng5 {[%emt 0:03:35]} e6 {[%emt 0:00:36]} 14. Ne4 {[%emt 0:01:27]} Qc7 {[%emt 0:04:02]} 15. Rc1 {[%emt 0:05:28]} Qa5+ {[%emt 0:04:46]} 16. Qd2 {[%emt 0:03:13]} Qxd2+ {[%emt 0:00:13]} 17. Nxd2 {[%emt 0:00:43]} Nxd4 {[%emt 0:00:57]} 18. O-O {[%emt 0:01:36]} b6 {[%emt 0:05:06]} 19. Rfd1 {[%emt 0:01:13]} Bb7 {[%emt 0:00:56]} 20. h3 {[%emt 0:06:23]} Nc6 {[%emt 0:05:28]} 21. a4 {[%emt 0:05:11]} Nb4 {[%emt 0:03:01]} 22. Kf1 {[%emt 0:05:39]} Bd5 {[%emt 0:05:10]} 23. Nf3 {[%emt 0:05:55]} Bxf3 {[%emt 0:02:24]} 24. gxf3 {[%emt 0:00:33]} Kf8 {[%emt 0:04:00]} 25. Ke2 {[%emt 0:04:14]} Rdc8 {[%emt 0:03:39]} 26. Rd7 {[%emt 0:05:16]} Rd8 {[%emt 0:07:06]} 27. Rcd1 {[%emt 0:02:12]} Rxd7 {[%emt 0:04:28]} 28. Rxd7 {[%emt 0:00:32]} Nc6 {[%emt 0:01:52]} 29. Bb5 {[%emt 0:03:18]} Ne7 {[%emt 0:06:33]} 30. Kd3 {[%emt 0:04:58] normal} 1/2-1/2

[Event "DVM U12 2019"]
[Site "Magedburg"]
[Date "2019.12.27"]
[Round "2"]
[White "Monninkhoff, Yari"]
[Black "Lieske, Aaron"]
[Result "1-0"]
[ECO "C55"]
[WhiteElo "1272"]
[BlackElo "1493"]
[Annotator "NA"]
[PlyCount "47"]
[EventDate "2019.12.27"]
[EventType "team-tourn"]
[EventRounds "7"]
[EventCountry "GER"]
[SourceTitle "playchess.com"]
[Source "ChessBase"]
[SourceQuality "1"]
[WhiteTeam "SV Empor Berlin"]
[BlackTeam "SC Kreuzberg"]
[TimeControl "40/5400+30:1800+30"]

1. e4 e5 {[%emt 0:00:00]} 2. Nf3 {[%emt 0:00:00]} Nc6 {[%emt 0:00:00]} 3. Bc4 {[%emt 0:00:11]} Nf6 {[%emt 0:00:30]} 4. d3 {[%emt 0:00:18]} a6 {[%emt 0:01:48]} 5. Bg5 {[%emt 0:01:12]} Be7 {[%emt 0:01:29]} 6. a3 {[%emt 0:01:22]} d6 {[%emt 0:00:28]} 7. Nbd2 {[%emt 0:01:32]} Bg4 {[%emt 0:02:25]} 8. c3 {[%emt 0:02:34]} Na5 {[%emt 0:02:39]} 9. Ba2 {[%emt 0:01:00]} Qd7 {[%emt 0:01:28]} 10. O-O {[%emt 0:02:47]} h6 {[%emt 0:03:54]} 11. Bh4 {[%emt 0:01:33]} O-O {[%emt 0:03:22]} 12. h3 {[%emt 0:02:05]} Be6 {[%emt 0:01:20]} 13. Bb1 {[%emt 0:01:13]} Qd8 {[%emt 0:04:18]} 14. d4 {[%emt 0:02:14]} exd4 {[%emt 0:03:16]} 15. cxd4 {[%emt 0:01:33]} Nc4 {[%emt 0:05:04]} 16. Nxc4 {[%emt 0:02:31]} Bxc4 {[%emt 0:00:21]} 17. Re1 {[%emt 0:00:36]} Re8 {[%emt 0:02:27]} 18. Qc2 {[%emt 0:02:17]} d5 {[%emt 0:02:42]} 19. exd5 {[%emt 0:02:19]} g5 {[%emt 0:05:01]} 20. Qxc4 {[%emt 0:03:31]} gxh4 {[%emt 0:00:29]} 21. Nxh4 {[%emt 0:05:49]} Nxd5 {[%emt 0:07:36]} 22. Nf5 {[%emt 0:02:05]} h5 {[%emt 0:01:29]} 23. Qd3 {[%emt 0:06:06]} Nf6 {[%emt 0:01:05]} 24. Qg3+ {normal} 1-0

[Event "DVM U12 2019"]
[Site "Magedburg"]
[Date "2019.12.27"]
[Round "2"]
[White "Koulouris, Fabian"]
[Black "Spranger, Tobias"]
[Result "0-1"]
[ECO "C51"]
[WhiteElo "1261"]
[BlackElo "1390"]
[Annotator "NA"]
[PlyCount "54"]
[EventDate "2019.12.27"]
[EventType "team-tourn"]
[EventRounds "7"]
[EventCountry "GER"]
[SourceTitle "playchess.com"]
[Source "ChessBase"]
[SourceQuality "1"]
[WhiteTeam "SC Kreuzberg"]
[BlackTeam "SV Empor Berlin"]
[TimeControl "40/5400+30:1800+30"]

1. e4 {[%emt 0:00:00]} e5 {[%emt 0:00:00]} 2. Nf3 {[%emt 0:00:00]} Nc6 {[%emt 0:00:00]} 3. Bc4 {[%emt 0:00:00]} Bc5 {[%emt 0:00:00]} 4. b4 {[%emt 0:00:00]} Bb6 {[%emt 0:02:13]} 5. c3 {[%emt 0:03:14]} Nf6 {[%emt 0:00:26]} 6. d3 {[%emt 0:00:26]} d6 {[%emt 0:00:14]} 7. Qb3 {[%emt 0:02:02]} O-O {[%emt 0:01:28]} 8. Nbd2 {[%emt 0:01:28]} h6 {[%emt 0:01:18]} 9. O-O {[%emt 0:00:29]} Ne7 {[%emt 0:02:07]} 10. d4 {[%emt 0:01:22]} exd4 {[%emt 0:01:02]} 11. cxd4 {[%emt 0:02:24]} d5 {[%emt 0:01:22]} 12. exd5 {[%emt 0:03:53]} Nexd5 {[%emt 0:00:14]} 13. Bxd5 {[%emt 0:04:55]} Nxd5 {[%emt 0:02:29]} 14. Nc4 {[%emt 0:13:18]} Be6 {[%emt 0:02:41]} 15. Nxb6 {[%emt 0:00:53]} Nxb6 {[%emt 0:00:19]} 16. Qc3 {[%emt 0:06:27]} c6 {[%emt 0:02:16]} 17. Bb2 {[%emt 0:12:02]} Bd5 {[%emt 0:01:30]} 18. Ne5 {[%emt 0:04:22]} Na4 {[%emt 0:02:14]} 19. Qc2 {[%emt 0:02:30]} Nxb2 {[%emt 0:04:24]} 20. Qxb2 {[%emt 0:01:26]} Qg5 {[%emt 0:05:35]} 21. f4 {[%emt 0:01:50]} Qf5 {[%emt 0:00:20]} 22. Rae1 {[%emt 0:06:39]} f6 {[%emt 0:01:59]} 23. Nf3 {[%emt 0:08:48]} Qxf4 {[%emt 0:04:17]} 24. Ne5 {[%emt 0:07:39]} Qg5 {[%emt 0:03:15]} 25. Nd7 {[%emt 0:02:15]} Rfe8 {[%emt 0:03:20]} 26. Nc5 {[%emt 0:02:29]} Bc4 {[%emt 0:01:28]} 27. Rxe8+ {[%emt 0:00:58]} Rxe8 {[%emt 0:00:33] normal} 0-1

[Event "DVM U12 2019"]
[Site "Magedburg"]
[Date "2019.12.27"]
[Round "2"]
[White "Rumpold, Jaron"]
[Black "Krüger, Arthur"]
[Result "1/2-1/2"]
[ECO "D37"]
[WhiteElo "1123"]
[BlackElo "1693"]
[Annotator "NA"]
[PlyCount "79"]
[EventDate "2019.12.27"]
[EventType "team-tourn"]
[EventRounds "7"]
[EventCountry "GER"]
[SourceTitle "playchess.com"]
[Source "ChessBase"]
[SourceQuality "1"]
[WhiteTeam "SV Roter Turm Halle"]
[BlackTeam "Hamburger SK"]
[TimeControl "40/5400+30:1800+30"]

1. d4 {[%emt 0:00:00]} d5 {[%emt 0:00:00]} 2. c4 {[%emt 0:00:00]} e6 {[%emt 0:00:00]} 3. Nc3 {[%emt 0:00:00]} Nf6 {[%emt 0:00:00]} 4. Nf3 {[%emt 0:00:00]} Be7 {[%emt 0:00:13]} 5. Bf4 {[%emt 0:00:38]} a6 {[%emt 0:02:22]} 6. e3 {[%emt 0:01:10]} Nbd7 {[%emt 0:04:15]} 7. c5 {[%emt 0:02:20]} Nh5 {[%emt 0:06:46]} 8. Bg3 {[%emt 0:03:42]} Nxg3 {[%emt 0:00:53]} 9. fxg3 {[%emt 0:00:45]} Nf6 {[%emt 0:01:18]} 10. Bd3 {[%emt 0:01:55]} g6 {[%emt 0:09:01]} 11. O-O {[%emt 0:01:43]} O-O {[%emt 0:00:54]} 12. b4 {[%emt 0:02:21]} c6 {[%emt 0:03:24]} 13. Ne5 {[%emt 0:03:56]} Nd7 {[%emt 0:01:06]} 14. Nf3 {[%emt 0:05:43]} f6 {[%emt 0:01:39]} 15. e4 {[%emt 0:02:29]} dxe4 {[%emt 0:03:25]} 16. Nxe4 {[%emt 0:02:48]} f5 {[%emt 0:03:24]} 17. Nc3 {[%emt 0:02:37]} Nf6 {[%emt 0:01:08]} 18. a4 {[%emt 0:03:57]} Nd5 {[%emt 0:02:09]} 19. Nxd5 {[%emt 0:05:38]} exd5 {[%emt 0:01:30]} 20. b5 {[%emt 0:02:41]} axb5 {[%emt 0:05:07]} 21. axb5 {[%emt 0:00:16]} Rxa1 {[%emt 0:06:45]} 22. Qxa1 {[%emt 0:00:14]} cxb5 {[%emt 0:05:16]} 23. Bxb5 {[%emt 0:01:00]} Bd7 {[%emt 0:02:21]} 24. Qa4 {[%emt 0:03:07]} Bxb5 {[%emt 0:02:48]} 25. Qxb5 {[%emt 0:00:08]} Qc7 {[%emt 0:01:39]} 26. Rb1 {[%emt 0:02:12]} Rb8 {[%emt 0:01:43]} 27. c6 {[%emt 0:04:36]} b6 {[%emt 0:13:36]} 28. Qxd5+ {[%emt 0:01:21]} Kg7 {[%emt 0:01:26]} 29. Qe5+ {[%emt 0:07:27]} Qxe5 {[%emt 0:00:37]} 30. Nxe5 {[%emt 0:00:05]} Bf6 {[%emt 0:03:39]} 31. Nf3 {[%emt 0:05:04]} Kf7 {[%emt 0:02:43]} 32. d5 {[%emt 0:02:30]} b5 {[%emt 0:07:43]} 33. c7 {[%emt 0:06:31]} Rc8 {[%emt 0:00:44]} 34. Rxb5 {[%emt 0:08:50]} Rxc7 {[%emt 0:00:28]} 35. Rb1 {[%emt 0:01:04]} Ke7 {[%emt 0:00:51]} 36. Re1+ {[%emt 0:01:30]} Kd7 {[%emt 0:01:42]} 37. Rd1 {[%emt 0:04:50]} Kd6 {[%emt 0:00:39] normal} 38. Nd4 {[%emt 0:01:05] normal} Bxd4+ {[%emt 0:00:32]} 39. Rxd4 {[%emt 0:00:06] normal} Rc5 {[%emt 0:00:41]} 40. Kf2 {[%emt 0:01:23] normal} 1/2-1/2

[Event "DVM U12 2019"]
[Site "Magedburg"]
[Date "2019.12.28"]
[Round "3"]
[White "von Mettenheim, Johannes"]
[Black "Nitsche, Nikolai"]
[Result "1-0"]
[ECO "D30"]
[WhiteElo "1971"]
[BlackElo "1808"]
[Annotator "NA RC"]
[PlyCount "77"]
[EventDate "2019.12.27"]
[EventType "team-tourn"]
[EventRounds "7"]
[EventCountry "GER"]
[SourceTitle "playchess.com"]
[Source "ChessBase"]
[SourceQuality "1"]
[WhiteTeam "Schachzentrum Bemerode"]
[BlackTeam "SV Empor Berlin"]
[WhiteTeamCountry "GER"]
[BlackTeamCountry "GER"]
[TimeControl "40/5400+30:1800+30"]

1. d4 {[%emt 0:00:00]} d5 {[%emt 0:00:00]} 2. c4 {[%emt 0:00:00]} e6 {[%emt 0:00:03]} 3. Nf3 {[%emt 0:00:00]} c6 {[%emt 0:00:17]} 4. Qc2 {[%emt 0:00:00]} dxc4 {[%emt 0:02:13]} 5. Qxc4 {[%emt 0:01:02] unterminated} b5 {[%emt 0:02:06] unterminated} 6. Qc2 {[%emt 0:00:08]} Bb7 {[%emt 0:00:37]} 7. g3 {[%emt 0:00:38] unterminated} Nd7 {[%emt 0:02:02] unterminated} 8. Bg2 {[%emt 0:05:32] unterminated} c5 {[%emt 0:00:31]} 9. O-O {[%emt 0:02:18] unterminated} Ngf6 {[%emt 0:03:13] unterminated} 10. Nbd2 {[%emt 0:21:03] unterminated D30: Queen's Gambit Declined: Systems without Nc3} (10. dxc5 Bxc5 11. Nc3 Rc8 12. a3 O-O 13. Qd3 a6 14. Be3 Nb6 15. Qxd8 Rfxd8 16. Bxc5 Rxc5 17. Rfd1 Rdc8 18. Nd2 Bxg2 19. Kxg2 R5c6 20. a4 b4 21. Na2 a5 {0-1 (51) Hess,R (2574)-Wojtaszek,R (2727) Douglas 2018}) 10... Be7 {[%emt 0:03:02] unterminated} 11. dxc5 {[%emt 0:02:42]} Nxc5 $146 {[%emt 0:00:46] unterminated} ({Predecessor:} 11... Bxc5 12. Nb3 Bb6 13. Rd1 Be4 14. Qc3 Qe7 15. Bf4 b4 16. Qc4 Bd5 {1-0 (34) Taylor,A (2122)-Wilson,M (1822) Hastings 2019}) 12. Rd1 {[%emt 0:07:03] unterminated} Qb6 {[%emt 0:03:35] unterminated} 13. Nb3 {[%emt 0:04:51] unterminated} Be4 {[%emt 0:03:26] unterminated} 14. Qc3 {[%emt 0:00:25]} b4 {[%emt 0:02:59] unterminated} 15. Qe5 {[%emt 0:07:57] unterminated} Nxb3 {[%emt 0:06:13] unterminated} 16. axb3 {[%emt 0:00:57] unterminated} O-O {[%emt 0:04:20]} 17. Be3 {[%emt 0:01:55]} Qb7 {[%emt 0:00:58]} 18. Rdc1 {[%emt 0:09:58]} Ng4 {[%emt 0:02:55]} 19. Qc7 {[%emt 0:04:04]} Nxe3 {[%emt 0:00:43]} 20. Qxb7 {[%emt 0:00:28]} Bxb7 {[%emt 0:00:13]} 21. fxe3 {[%emt 0:00:17] unterminated} Bf6 {[%emt 0:04:07] unterminated} 22. Nd4 {[%emt 0:01:09] unterminated} Bxg2 $11 {[%emt 0:07:55]} 23. Kxg2 {[%emt 0:00:07]} Rfd8 {[%emt 0:02:06]} 24. Rc4 {[%emt 0:01:52]} Bxd4 {[%emt 0:00:58]} 25. exd4 {[%emt 0:00:09]} a5 {[%emt 0:02:26]} 26. e3 {[%emt 0:01:59]} f5 {[%emt 0:00:08]} 27. Rc5 {[%emt 0:05:16]} Rd5 {[%emt 0:04:01]} 28. Kf2 {[%emt 0:05:39]} Rxc5 {[%emt 0:07:15]} 29. dxc5 {[%emt 0:00:02]} e5 {[%emt 0:00:08]} 30. e4 {[%emt 0:00:43]} fxe4 {[%emt 0:01:40]} 31. Ke3 {[%emt 0:00:06]} Kf7 {[%emt 0:00:10]} 32. Kxe4 {[%emt 0:00:07]} Ke6 {[%emt 0:03:27]} 33. Rd1 {[%emt 0:00:10]} a4 {[%emt 0:00:06]} 34. Rd6+ {[%emt 0:01:10]} Ke7 {[%emt 0:00:10]} 35. bxa4 {[%emt 0:00:10]} Rxa4 {[%emt 0:00:06]} 36. Kxe5 {[%emt 0:00:46]} Ra2 {[%emt 0:02:27]} 37. Rd2 {[%emt 0:00:06]} b3 {[%emt 0:00:39]} 38. Kd4 {[%emt 0:01:34]} Kd7 {[%emt 0:01:07]} 39. Ke4+ {normal} 1-0

[Event "DVM U12 2019"]
[Site "Magedburg"]
[Date "2019.12.28"]
[Round "3"]
[White "Kempe, Caius Emilian"]
[Black "Schoen, Florian"]
[Result "1-0"]
[ECO "C51"]
[WhiteElo "1832"]
[BlackElo "1713"]
[Annotator "NA RC"]
[PlyCount "145"]
[EventDate "2019.12.27"]
[EventType "team-tourn"]
[EventRounds "7"]
[EventCountry "GER"]
[SourceTitle "playchess.com"]
[Source "ChessBase"]
[SourceQuality "1"]
[WhiteTeam "USV TU Dresden"]
[BlackTeam "BSG Grün-Weiß Leipzig"]
[WhiteTeamCountry "GER"]
[BlackTeamCountry "GER"]
[TimeControl "40/5400+30:1800+30"]

1. e4 {[%emt 0:00:00]} e5 {[%emt 0:00:00]} 2. Nf3 {[%emt 0:00:00]} Nc6 {[%emt 0:00:00]} 3. Bc4 {[%emt 0:00:00]} Bc5 {[%emt 0:00:00]} 4. b4 {[%emt 0:00:00]} Bxb4 {[%emt 0:00:00]} 5. c3 {[%emt 0:00:03]} Bc5 {[%emt 0:00:16]} 6. d4 {[%emt 0:00:07]} exd4 {[%emt 0:00:03]} 7. cxd4 {[%emt 0:00:13]} Bb4+ {[%emt 0:00:03]} 8. Bd2 {[%emt 0:00:10]} Bxd2+ {[%emt 0:00:07]} 9. Nbxd2 {[%emt 0:00:01]} Nf6 {[%emt 0:00:31] unterminated} 10. Ng5 {[%emt 0:04:27]} (10. e5 $11 {remains equal.} d5 11. exf6 dxc4 12. fxg7) 10... O-O {[%emt 0:03:43]} 11. e5 {[%emt 0:00:10]} d5 {[%emt 0:01:13]} 12. Bd3 {[%emt 0:36:24]} Ne4 {[%emt 0:00:49]} 13. Ngf3 {[%emt 0:04:43]} Bg4 {[%emt 0:07:58]} 14. Nxe4 {[%emt 0:07:29]} dxe4 {[%emt 0:01:06]} 15. Bxe4 {[%emt 0:00:26]} Bxf3 {[%emt 0:00:21]} 16. Bxf3 {[%emt 0:01:00]} Qxd4 {[%emt 0:00:15]} 17. Qxd4 {[%emt 0:01:04]} Nxd4 {[%emt 0:00:01] unterminated} 18. Bxb7 {[%emt 0:01:30]} Rae8 {[%emt 0:00:45] unterminated} 19. O-O-O {[%emt 0:04:39] unterminated} Ne2+ {[%emt 0:04:21]} 20. Kc2 {[%emt 0:00:55]} Rxe5 {[%emt 0:00:54] unterminated} 21. Bf3 {[%emt 0:01:31] unterminated} Rc5+ {[%emt 0:02:27]} 22. Kd2 {[%emt 0:01:51] unterminated} (22. Kb2 $142 Rb8+ 23. Ka1) 22... Nd4 {[%emt 0:00:36]} 23. Be4 {[%emt 0:01:31] unterminated} Re8 {[%emt 0:09:12] unterminated} 24. Bd3 {[%emt 0:01:12]} Ra5 {[%emt 0:00:32] unterminated} 25. Bc4 {[%emt 0:01:12] unterminated} Ra4 {[%emt 0:03:31] unterminated} 26. Kc3 {[%emt 0:00:40]} c5 {[%emt 0:00:31]} 27. Rb1 {[%emt 0:01:00] unterminated} Ra3+ {[%emt 0:01:42]} 28. Kb2 {[%emt 0:00:39] unterminated} Ra4 {[%emt 0:00:15]} 29. Kc3 {[%emt 0:00:18] unterminated} h6 {[%emt 0:11:29]} 30. Rb7 {[%emt 0:00:50]} Rxc4+ {[%emt 0:00:02]} 31. Kxc4 {[%emt 0:01:25]} Nc6 {[%emt 0:01:14]} 32. Kxc5 {[%emt 0:01:05]} Rc8 {[%emt 0:00:07]} 33. Kd5 {[%emt 0:01:11]} a5 {[%emt 0:00:13]} 34. a3 {[%emt 0:00:36]} Kf8 {[%emt 0:00:18]} 35. Re1 {[%emt 0:00:29]} g6 {[%emt 0:00:51] unterminated} 36. Re4 $18 {[%emt 0:00:56]} h5 {[%emt 0:00:12]} 37. Rc4 {[%emt 0:05:17]} Ne7+ {[%emt 0:00:01]} 38. Rxe7 {[%emt 0:00:48]} Rd8+ {[%emt 0:00:03]} 39. Kc5 {[%emt 0:00:26]} Kxe7 {[%emt 0:00:01]} 40. Kb5 {[%emt 0:00:03]} Ra8 {[%emt 0:01:03]} 41. Ra4 {[%emt 0:30:32]} Kd6 {[%emt 0:30:48]} 42. Rxa5 {[%emt 0:00:09]} Rb8+ {[%emt 0:00:16]} 43. Kc4 {[%emt 0:00:17]} Rb2 {[%emt 0:00:06]} 44. Ra6+ {[%emt 0:00:05]} Ke7 {[%emt 0:00:07]} 45. a4 {[%emt 0:00:11]} Rxf2 {[%emt 0:00:04]} 46. a5 {[%emt 0:00:15] unterminated} Rxg2 {[%emt 0:01:06]} 47. Ra8 {[%emt 0:00:44]} f5 {[%emt 0:00:57]} 48. a6 {[%emt 0:00:05]} f4 {[%emt 0:00:06]} 49. a7 {[%emt 0:00:09]} Ra2 {[%emt 0:00:03]} 50. Rh8 {[%emt 0:00:24]} f3 {[%emt 0:01:04]} 51. a8=Q {[%emt 0:00:07]} Rxa8 {[%emt 0:00:22]} 52. Rxa8 {[%emt 0:00:01]} g5 {[%emt 0:00:25]} 53. Kd3 {[%emt 0:00:05]} Ke6 {[%emt 0:00:38]} 54. Ke3 {[%emt 0:00:03]} g4 {[%emt 0:00:40]} 55. Kf4 {[%emt 0:00:54]} Kf6 {[%emt 0:01:07]} 56. Ra6+ {[%emt 0:00:07]} Kf7 {[%emt 0:00:59]} 57. Kg3 {[%emt 0:00:07]} Kg7 {[%emt 0:00:07]} 58. h3 {[%emt 0:01:06]} gxh3 {[%emt 0:01:15]} 59. Kxf3 {[%emt 0:00:08]} h4 {[%emt 0:00:13]} 60. Kf2 {[%emt 0:00:14]} Kh7 {[%emt 0:00:15]} 61. Kg1 {[%emt 0:00:20]} Kg7 {[%emt 0:00:11]} 62. Kh2 {[%emt 0:00:03]} Kh7 {[%emt 0:00:10]} 63. Kxh3 {[%emt 0:00:03]} Kg7 {[%emt 0:00:02]} 64. Kxh4 {[%emt 0:00:06]} Kh7 {[%emt 0:00:15]} 65. Kg5 {[%emt 0:00:09]} Kg7 {[%emt 0:00:09]} 66. Ra7+ {[%emt 0:00:06]} Kf8 {[%emt 0:00:10]} 67. Kf6 {[%emt 0:00:04]} Ke8 {[%emt 0:00:03]} 68. Ke6 {[%emt 0:00:06]} Kd8 {[%emt 0:00:05]} 69. Rh7 {[%emt 0:00:12]} Kc8 {[%emt 0:00:09]} 70. Kd6 {[%emt 0:00:06]} Kb8 {[%emt 0:00:16]} 71. Kc6 {[%emt 0:00:26]} Ka8 {[%emt 0:00:03]} 72. Kb6 {[%emt 0:00:07]} Kb8 {[%emt 0:00:07]} 73. Rh8# {[%emt 0:00:05] normal} 1-0